bitfinex/quotes_BTCUSD_20250212
["timestamp","ask_amount","ask_price","bid_price","bid_amount"]
[1739324418337,0.19281716,96151.0,96150.0,0.166006]
[1739324420249,0.19281716,96151.0,96150.0,0.48683916]
[1739324420648,0.19281716,96151.0,96150.0,0.33083316]
[1739324420873,0.19281716,96151.0,96150.0,0.48683916]
[1739324421436,0.19281716,96151.0,96150.0,0.58934281]
[1739324422652,0.19281716,96151.0,96150.0,1.17174281]
[1739324423001,0.19281716,96151.0,96150.0,1.34554646]
[1739324423405,0.02663069,96180.0,96150.0,1.11024046]
[1739324423553,0.155965,96176.0,96164.0,0.155983]
[1739324423753,0.155965,96176.0,96165.0,0.155981]
[1739324424047,0.207947,96178.0,96164.0,0.10250365]
[1739324424256,0.06023912,96180.0,96164.0,0.25848565]
[1739324424430,0.155968,96174.0,96165.0,0.03471542]
[1739324425525,0.207951,96177.0,96165.0,0.03471542]
[1739324425854,0.155967,96175.0,96165.0,0.03471542]
[1739324426623,0.155967,96174.0,96165.0,0.03471542]
[1739324428454,0.01629528,96183.0,96166.0,0.55533681]
[1739324428599,0.01629528,96183.0,96167.0,0.00103977]
[1739324428945,0.155954,96182.0,96171.0,0.155971]
[1739324429125,0.155955,96182.0,96172.0,0.47680316]
[1739324429350,0.155955,96182.0,96173.0,0.155968]
[1739324429531,0.155956,96181.0,96174.0,0.10250365]
[1739324429709,0.01629528,96183.0,96174.0,0.10250365]
[1739324429900,0.155956,96181.0,96174.0,0.10250365]
[1739324431290,0.155954,96182.0,96174.0,0.10250365]
[1739324431474,0.01629528,96183.0,96174.0,0.10250365]
[1739324431475,0.155956,96181.0,96174.0,0.10250365]
[1739324431697,0.01629528,96183.0,96174.0,0.10250365]
[1739324431895,0.22423128,96183.0,96175.0,0.05258405]
[1739324432100,0.155954,96182.0,96175.0,0.05258405]
[1739324432330,0.155954,96182.0,96176.0,0.32083316]
[1739324432669,0.03299412,96186.0,96176.0,0.32083316]
[1739324433055,0.155955,96182.0,96177.0,0.08398539]
[1739324433368,0.03370797,96189.0,96177.0,0.08398539]
[1739324433789,0.155952,96184.0,96177.0,0.08398539]
[1739324433991,0.00772,96215.0,96177.0,0.08398539]
[1739324434208,0.0791,96196.0,96177.0,0.08398539]
[1739324434416,0.207913,96194.0,96176.0,0.32083316]
[1739324434614,0.155949,96185.0,96176.0,0.32083316]
[1739324435311,0.11190905,96196.0,96177.0,0.001]
[1739324435477,0.0957017,96190.0,96176.0,0.32083316]
[1739324435894,0.155953,96183.0,96176.0,0.32083316]
[1739324436102,0.155953,96183.0,96176.0,0.32183316]
[1739324436478,0.207932,96186.0,96176.0,0.32083316]
[1739324436686,0.155951,96184.0,96176.0,0.36961358]
[1739324437213,0.155951,96184.0,96176.0,0.32183316]
[1739324437635,0.207932,96186.0,96176.0,0.32183316]
[1739324437773,0.155952,96183.0,96176.0,0.32183316]
[1739324438602,0.155952,96183.0,96176.0,0.32083316]
[1739324440595,0.207926,96188.0,96176.0,0.32083316]
[1739324440840,0.155953,96183.0,96176.0,0.32083316]
[1739324442231,0.155953,96183.0,96176.0,0.32183316]
[1739324442558,0.155953,96183.0,96176.0,0.32083316]
[1739324443855,0.207928,96187.0,96176.0,0.32083316]
[1739324444091,0.155952,96184.0,96176.0,0.32083316]
[1739324444336,0.155952,96184.0,96177.0,0.03923197]
[1739324444817,0.155952,96184.0,96176.0,0.32083316]
[1739324446278,0.155953,96183.0,96176.0,0.32083316]
[1739324448196,0.155959,96179.0,96176.0,0.32083316]
[1739324448459,0.155956,96181.0,96176.0,0.32083316]
[1739324448892,0.155954,96183.0,96176.0,0.32083316]
[1739324449805,0.155954,96183.0,96176.0,0.32383316]
[1739324450318,0.155954,96183.0,96176.0,0.32083316]
[1739324451624,0.0001065,96184.0,96176.0,0.32083316]
[1739324451804,0.155956,96181.0,96176.0,0.32083316]
[1739324452610,0.155954,96182.0,96176.0,0.32083316]
[1739324453133,0.0001065,96184.0,96176.0,0.32083316]
[1739324453338,0.1560575,96184.0,96176.0,0.32083316]
[1739324453499,0.155953,96183.0,96176.0,0.32183316]
[1739324453698,0.155955,96182.0,96176.0,0.32183316]
[1739324454216,0.0001065,96184.0,96176.0,0.32183316]
[1739324454407,0.155956,96181.0,96176.0,0.32183316]
[1739324455086,0.155954,96182.0,96176.0,0.32183316]
[1739324455287,0.155954,96182.0,96176.0,0.32083316]
[1739324456386,0.155954,96182.0,96176.0,0.32183316]
[1739324457381,0.0001065,96184.0,96176.0,0.32183316]
[1739324457523,0.155955,96182.0,96176.0,0.32183316]
[1739324458495,0.155955,96182.0,96176.0,0.32083316]
[1739324459308,0.155955,96182.0,96176.0,0.34604398]
[1739324459874,0.155956,96181.0,96176.0,0.32083316]
[1739324460279,0.1560585,96184.0,96176.0,0.47679516]
[1739324460484,0.155953,96183.0,96177.0,0.0765]
[1739324460705,0.0001065,96184.0,96177.0,0.0765]
[1739324461012,0.155952,96183.0,96177.0,0.0765]
[1739324461212,0.155952,96183.0,96178.0,0.09694378]
[1739324462021,0.155955,96182.0,96179.0,0.32083316]
[1739324463128,0.155955,96182.0,96179.0,0.32183316]
[1739324463335,0.155954,96183.0,96179.0,0.32196601]
[1739324463932,0.1560575,96184.0,96179.0,0.32196601]
[1739324464129,0.155953,96183.0,96179.0,0.32196601]
[1739324464336,0.155953,96183.0,96179.0,0.32096601]
[1739324464725,0.155954,96182.0,96179.0,0.32096601]
[1739324467048,0.0001065,96184.0,96179.0,0.32096601]
[1739324467454,0.155957,96180.0,96179.0,0.32096601]
[1739324467680,0.155957,96180.0,96179.0,0.32196601]
[1739324468552,0.155957,96180.0,96179.0,0.32096601]
[1739324470846,0.155957,96180.0,96179.0,0.32296601]
[1739324471339,0.155957,96180.0,96179.0,0.35330734]
[1739324471696,0.155957,96180.0,96179.0,0.35530734]
[1739324472191,0.155957,96180.0,96179.0,0.35330734]
[1739324472437,0.155957,96180.0,96179.0,0.35630734]
[1739324472810,0.155957,96180.0,96179.0,0.32396601]
[1739324473006,0.155957,96180.0,96179.0,0.32496601]
[1739324473651,0.18877509,96180.0,96179.0,0.32196601]
[1739324474598,0.18877509,96180.0,96179.0,0.32796601]
[1739324474913,0.17863509,96180.0,96179.0,0.32796601]
[1739324476437,0.207937,96183.0,96179.0,0.32796601]
[1739324476750,0.155957,96180.0,96179.0,0.32196601]
[1739324476990,0.155957,96180.0,96179.0,0.32396601]
[1739324477467,0.155957,96180.0,96179.0,0.32196601]
[1739324477846,0.155957,96180.0,96179.0,0.32096601]
[1739324478693,0.155957,96180.0,96179.0,0.32296601]
[1739324479676,0.155957,96180.0,96179.0,0.00213285]
[1739324479988,0.155957,96180.0,96179.0,0.00013285]
[1739324480180,0.155957,96180.0,96179.0,0.00313285]
[1739324481317,0.01629334,96181.0,96179.0,0.00313285]
[1739324481522,0.01629334,96181.0,96179.0,0.00013285]
[1739324481726,0.01629334,96181.0,96179.0,0.00513285]
[1739324482090,0.01629334,96181.0,96179.0,0.00613285]
[1739324482495,0.01629334,96181.0,96179.0,0.16109185]
[1739324482697,0.01629334,96181.0,96179.0,0.16309185]
[1739324482896,0.01629334,96181.0,96179.0,0.15809185]
[1739324483348,0.01629334,96181.0,96179.0,0.00613285]
[1739324483707,0.01629334,96181.0,96179.0,0.00213285]
[1739324484106,0.01629334,96181.0,96179.0,0.00913285]
[1739324484537,0.01629334,96181.0,96179.0,0.00013285]
[1739324484933,0.01629334,96181.0,96179.0,0.16509085]
[1739324485340,0.01629334,96181.0,96179.0,0.00913285]
[1739324485661,0.01629334,96181.0,96180.0,0.32083316]
[1739324486884,0.01629334,96181.0,96180.0,0.32783316]
[1739324487634,0.01629334,96181.0,96180.0,0.32983316]
[1739324488075,0.17224834,96181.0,96180.0,0.32983316]
[1739324488407,0.01629334,96181.0,96180.0,0.32983316]
[1739324488751,0.17224834,96181.0,96180.0,0.32983316]
[1739324492121,0.19357943,96181.0,96180.0,0.32983316]
[1739324497098,0.19357943,96181.0,96180.0,0.32283316]
[1739324497270,0.19357943,96181.0,96180.0,0.32383316]
[1739324500166,0.19357943,96181.0,96180.0,0.32405702]
[1739324505550,0.19357943,96181.0,96180.0,0.32105702]
[1739324505784,0.19357943,96181.0,96180.0,0.32405702]
[1739324506418,0.19357943,96181.0,96180.0,0.32105702]
[1739324506644,0.19357943,96181.0,96180.0,0.32405702]
[1739324512156,0.19357943,96181.0,96180.0,0.32105702]
[1739324512293,0.19357943,96181.0,96180.0,0.32505702]
[1739324512671,0.01629334,96181.0,96180.0,0.55931402]
[1739324512875,0.01629334,96181.0,96180.0,0.40335702]
[1739324513079,0.01629334,96181.0,96180.0,0.56031402]
[1739324513884,0.01629334,96181.0,96180.0,0.55931402]
[1739324514287,0.01629334,96181.0,96180.0,0.56131402]
[1739324514504,0.01629334,96181.0,96180.0,0.55731402]
[1739324514711,0.01629334,96181.0,96180.0,0.56531402]
[1739324516265,0.0001065,96182.0,96180.0,1.15236432]
[1739324516435,0.0001065,96182.0,96181.0,0.38629823]
[1739324516636,0.0001065,96182.0,96181.0,0.38525865]
[1739324517937,0.0001065,96182.0,96181.0,0.38725865]
[1739324518104,0.0001065,96182.0,96181.0,0.4897623]
[1739324518697,0.0397685,96188.0,96187.0,0.155946]
[1739324518892,0.0001065,96190.0,96189.0,0.237342]
[1739324521338,0.0001065,96190.0,96189.0,0.55817516]
[1739324521514,0.0001065,96190.0,96189.0,0.55917516]
[1739324523092,0.0001065,96190.0,96189.0,0.40323316]
[1739324523298,0.0001065,96190.0,96189.0,0.32183316]
[1739324523451,0.207912,96195.0,96189.0,0.32183316]
[1739324523931,0.155941,96190.0,96189.0,0.32183316]
[1739324524288,0.155936,96193.0,96189.0,0.32183316]
[1739324524471,0.04154063,96196.0,96189.0,0.32083316]
[1739324524987,0.15594,96191.0,96189.0,0.32083316]
[1739324525772,0.24944963,96196.0,96189.0,0.32083316]
[1739324526392,0.207913,96194.0,96190.0,0.06415203]
[1739324526760,0.155939,96191.0,96189.0,0.32183316]
[1739324527629,0.155939,96191.0,96189.0,0.32083316]
[1739324527840,0.155939,96192.0,96189.0,0.32083316]
[1739324528453,0.207913,96194.0,96189.0,0.32083316]
[1739324528651,0.207913,96194.0,96189.0,0.32183316]
[1739324529044,0.155936,96193.0,96189.0,0.32183316]
[1739324529249,0.155936,96193.0,96189.0,0.32083316]
[1739324529931,0.155934,96194.0,96189.0,0.32083316]
[1739324530184,0.155938,96193.0,96189.0,0.32083316]
[1739324533420,0.155938,96193.0,96189.0,0.32283316]
[1739324534950,0.155933,96195.0,96189.0,0.33283316]
[1739324535164,0.04154063,96196.0,96189.0,0.33083316]
[1739324535385,0.04154063,96196.0,96189.0,0.33183316]
[1739324535806,0.04154063,96196.0,96189.0,0.32083316]
[1739324536193,0.155933,96195.0,96189.0,0.32083316]
[1739324536433,0.155935,96194.0,96189.0,0.32383316]
[1739324536852,0.155935,96194.0,96189.0,0.32083316]
[1739324537050,0.155935,96194.0,96189.0,0.33183316]
[1739324537651,0.155935,96194.0,96189.0,0.32283316]
[1739324538167,0.04154063,96196.0,96189.0,0.33183316]
[1739324538343,0.04154063,96196.0,96189.0,0.32983316]
[1739324538487,0.155936,96193.0,96189.0,0.33283316]
[1739324538971,0.155936,96193.0,96189.0,0.32383316]
[1739324539446,0.155933,96195.0,96189.0,0.47677516]
[1739324539773,0.155933,96195.0,96189.0,0.47977516]
[1739324540121,0.155935,96194.0,96189.0,0.32383316]
[1739324540350,0.155935,96194.0,96189.0,0.33183316]
[1739324540699,0.155935,96194.0,96189.0,0.32383316]
[1739324541021,0.155935,96194.0,96189.0,0.33283316]
[1739324541553,0.155935,96194.0,96189.0,0.32383316]
[1739324541720,0.155935,96194.0,96189.0,0.32983316]
[1739324542118,0.155935,96194.0,96189.0,0.48577516]
[1739324542322,0.155935,96194.0,96189.0,0.48777516]
[1739324543396,0.155935,96194.0,96189.0,0.48577516]
[1739324543748,0.155935,96194.0,96189.0,0.48877516]
[1739324547243,0.155935,96194.0,96189.0,0.33283316]
[1739324547446,0.155933,96195.0,96189.0,0.48877516]
[1739324547867,0.04154063,96196.0,96191.0,0.155939]
[1739324548081,0.155933,96195.0,96191.0,0.32083316]
[1739324548418,0.155933,96195.0,96192.0,0.0792]
[1739324548917,0.04154063,96196.0,96192.0,0.0792]
[1739324549125,0.04154063,96196.0,96193.0,0.2689312]
[1739324549302,0.04154063,96196.0,96195.0,0.155933]
[1739324550883,0.04154063,96196.0,96195.0,0.163933]
[1739324551167,0.04154063,96196.0,96195.0,0.48476616]
[1739324551799,0.04154063,96196.0,96195.0,0.53066616]
[1739324552109,0.04154063,96196.0,96195.0,0.53266616]
[1739324553473,0.04154063,96196.0,96195.0,0.56248108]
[1739324554494,0.04154063,96196.0,96195.0,0.55448108]
[1739324554890,0.04154063,96196.0,96195.0,0.56348108]
[1739324555166,0.04154063,96196.0,96195.0,0.53366616]
[1739324555361,0.04154063,96196.0,96195.0,0.52266616]
[1739324555562,0.04154063,96196.0,96195.0,0.52466616]
[1739324555764,0.04154063,96196.0,96195.0,0.60386616]
[1739324555919,0.04154063,96196.0,96195.0,0.60186616]
[1739324556516,0.04154063,96196.0,96195.0,0.61386616]
[1739324556712,0.04154063,96196.0,96195.0,0.82287346]
[1739324557857,0.0001065,96196.0,96195.0,0.82287346]
[1739324558441,0.0001065,96196.0,96195.0,0.72036981]
[1739324559927,0.0001065,96196.0,96195.0,1.25526981]
[1739324561932,0.0001065,96196.0,96195.0,0.72036981]
[1739324562095,0.0001065,96196.0,96195.0,0.74336981]
[1739324565969,0.0001065,96196.0,96195.0,1.27826981]
[1739324566621,0.17309957,96223.0,96198.0,0.207902]
[1739324566823,0.155892,96221.0,96215.0,0.1559]
[1739324567980,0.1563351,96221.0,96215.0,0.1559]
[1739324568339,0.0004431,96221.0,96211.0,0.0802]
[1739324568565,0.17217946,96220.0,96214.0,0.155902]
[1739324569060,0.17217946,96220.0,96211.0,0.18270365]
[1739324569061,0.01628746,96220.0,96217.0,0.155897]
[1739324569259,0.01628746,96220.0,96215.0,0.155899]
[1739324569844,0.01628746,96220.0,96212.0,0.207874]
[1739324570645,0.01628746,96220.0,96214.0,0.155901]
[1739324570960,0.01628746,96220.0,96219.0,0.155894]
[1739324571163,0.01628746,96220.0,96219.0,0.47672716]
[1739324571509,0.01628746,96220.0,96219.0,0.32083316]
[1739324576120,0.17217946,96220.0,96219.0,0.32083316]
[1739324584853,0.01628746,96220.0,96219.0,0.32083316]
[1739324585275,0.17217946,96220.0,96219.0,0.32083316]
[1739324586032,0.17217946,96220.0,96219.0,0.32105681]
[1739324587784,0.01628746,96220.0,96219.0,0.32105681]
[1739324588969,0.17217946,96220.0,96219.0,0.32105681]
[1739324590681,0.01628746,96220.0,96219.0,0.32105681]
[1739324591547,0.17217946,96220.0,96219.0,0.32105681]
[1739324592155,0.04254916,96223.0,96219.0,0.32105681]
[1739324592357,0.04254916,96223.0,96219.0,0.32118966]
[1739324593334,0.363742,96222.0,96219.0,0.37409593]
[1739324593506,0.155892,96221.0,96219.0,0.37409593]
[1739324593889,0.155892,96220.0,96219.0,0.37409593]
[1739324594106,0.155892,96220.0,96219.0,0.32118966]
[1739324594557,0.155891,96221.0,96219.0,0.32118966]
[1739324594980,0.155892,96220.0,96219.0,0.32118966]
[1739324598857,0.155892,96220.0,96219.0,0.32118966]
[1739324604398,0.155892,96220.0,96219.0,0.0003565]
[1739324612400,0.01628709,96221.0,96219.0,0.0003565]
[1739324612600,0.155892,96220.0,96219.0,0.0003565]
[1739324615037,0.01628709,96221.0,96219.0,0.0003565]
[1739324615230,0.01628709,96221.0,96220.0,0.155892]
[1739324616401,0.01628709,96221.0,96220.0,0.002]
[1739324616601,0.01628709,96221.0,96220.0,0.157892]
[1739324617190,0.01628709,96221.0,96220.0,0.164892]
[1739324619018,0.01628709,96221.0,96220.0,0.009]
[1739324619455,0.01628709,96221.0,96220.0,0.32983316]
[1739324620928,0.17217809,96221.0,96220.0,0.32983316]
[1739324631134,0.207848,96224.0,96220.0,0.32983316]
[1739324631555,0.155891,96221.0,96220.0,0.32983316]
[1739324632150,0.155891,96221.0,96220.0,0.32283316]
[1739324632353,0.155891,96221.0,96220.0,0.32083316]
[1739324632557,0.155891,96221.0,96220.0,0.32683316]
[1739324632768,0.155891,96221.0,96220.0,0.32583316]
[1739324632944,0.155891,96221.0,96220.0,0.32083316]
[1739324633151,0.155891,96221.0,96220.0,0.33005681]
[1739324635275,0.155891,96221.0,96220.0,0.32105681]
[1739324635693,0.155891,96221.0,96220.0,0.32305681]
[1739324636115,0.155891,96221.0,96220.0,0.32105681]
[1739324636319,0.155891,96221.0,96220.0,0.32305681]
[1739324644533,0.17627845,96221.0,96220.0,0.32305681]
[1739324645566,0.17627845,96221.0,96220.0,0.32105681]
[1739324646516,0.17627845,96221.0,96220.0,0.00022365]
[1739324668935,0.17500501,96221.0,96220.0,0.00022365]
[1739324675989,0.17600501,96221.0,96220.0,0.00022365]
[1739324676939,0.17500501,96221.0,96220.0,0.00022365]
[1739324677080,0.17600501,96221.0,96220.0,0.00022365]
[1739324677277,0.15561756,96221.0,96220.0,0.08172365]
[1739324677703,0.15561756,96221.0,96220.0,0.00022365]
[1739324679677,0.17201122,96221.0,96220.0,0.00022365]
[1739324680803,0.00050886,96220.0,96219.0,0.0003565]
[1739324681106,0.15640086,96220.0,96219.0,0.0003565]
[1739324681852,0.15640086,96220.0,96219.0,0.0013565]
[1739324683772,0.15740086,96220.0,96219.0,0.0013565]
[1739324689628,0.0001066,96223.0,96219.0,0.0013565]
[1739324689831,0.155892,96220.0,96219.0,0.0013565]
[1739324690574,0.155892,96220.0,96219.0,0.0003565]
[1739324691359,0.156892,96220.0,96219.0,0.0003565]
[1739324691564,0.156892,96220.0,96219.0,0.0013565]
[1739324692592,0.1559986,96220.0,96219.0,0.0013565]
[1739324692788,0.1559986,96220.0,96219.0,0.0003565]
[1739324693213,0.1559986,96220.0,96219.0,0.0023565]
[1739324693407,0.0001066,96220.0,96219.0,0.0023565]
[1739324693613,0.0001066,96220.0,96219.0,0.0003565]
[1739324694095,0.0001066,96220.0,96219.0,0.0013565]
[1739324694291,0.0001066,96220.0,96219.0,0.0003565]
[1739324694863,0.0001066,96220.0,96219.0,0.0023565]
[1739324700031,0.1559986,96220.0,96219.0,0.0023565]
[1739324700372,0.0001066,96220.0,96219.0,0.0023565]
[1739324700587,0.1559986,96220.0,96219.0,0.0023565]
[1739324701513,0.0001066,96220.0,96219.0,0.0023565]
[1739324701935,0.1559986,96220.0,96219.0,0.0023565]
[1739324702173,0.0001066,96220.0,96219.0,0.0023565]
[1739324703787,0.0001066,96220.0,96219.0,0.0842565]
[1739324703983,0.0001066,96220.0,96219.0,0.2401505]
[1739324704184,0.0001066,96220.0,96219.0,0.0842565]
[1739324705678,0.0001066,96220.0,96219.0,0.40508966]
[1739324706878,0.0001066,96220.0,96219.0,0.56098366]
[1739324708439,0.0001066,96220.0,96219.0,0.40508966]
[1739324716592,0.1559986,96220.0,96219.0,0.40508966]
[1739324718695,0.0001066,96220.0,96219.0,0.40508966]
[1739324722222,0.1559986,96220.0,96219.0,0.32318966]
[1739324723944,0.1559986,96220.0,96219.0,0.34034697]
[1739324724566,0.1559986,96220.0,96219.0,0.32318966]
[1739324725773,0.15549044,96220.0,96219.0,0.32318966]
[1739324727915,0.0001066,96222.0,96219.0,0.32318966]
[1739324728084,0.0001066,96222.0,96220.0,0.0455]
[1739324729280,0.0001066,96222.0,96221.0,0.32083316]
[1739324730024,0.0011066,96222.0,96221.0,0.35935827]
[1739324730226,0.0001066,96222.0,96221.0,0.35935827]
[1739324730385,0.0001066,96222.0,96221.0,0.36035827]
[1739324730386,0.0011066,96222.0,96221.0,0.36035827]
[1739324730922,0.0001066,96222.0,96221.0,0.36135827]
[1739324732068,0.0001066,96222.0,96221.0,0.51724927]
[1739324732286,0.0001066,96222.0,96221.0,0.60054927]
[1739324732834,0.0001066,96222.0,96221.0,0.60254927]
[1739324733057,0.0001066,96222.0,96221.0,0.59254927]
[1739324733256,0.0001066,96222.0,96221.0,0.60154927]
[1739324733482,0.0001066,96222.0,96221.0,0.60454927]
[1739324734745,0.0001066,96222.0,96221.0,0.70705292]
[1739324735424,0.0001066,96222.0,96221.0,1.24195292]
[1739324735625,0.0001066,96222.0,96221.0,1.20342781]
[1739324738414,0.0001066,96222.0,96221.0,1.19442781]
[1739324738676,0.0001066,96222.0,96221.0,1.20342781]
[1739324739140,0.0001066,96222.0,96221.0,1.20042781]
[1739324739346,0.0001066,96222.0,96221.0,1.20342781]
[1739324740796,0.0001066,96222.0,96221.0,1.26785788]
[1739324741695,0.0001066,96222.0,96221.0,1.31335788]
[1739324745038,0.0001066,96222.0,96221.0,1.33635788]
[1739324752174,0.0001066,96222.0,96221.0,0.97023681]
[1739324752376,0.1559956,96222.0,96221.0,0.33283316]
[1739324756298,0.0001066,96222.0,96221.0,0.33283316]
[1739324756854,0.1559956,96222.0,96221.0,0.33283316]
[1739324760157,0.0001066,96222.0,96221.0,0.48872416]
[1739324761007,0.0001066,96222.0,96221.0,0.66642781]
[1739324761873,0.0001066,96222.0,96221.0,0.65742781]
[1739324762078,0.0001066,96222.0,96221.0,1.18932781]
[1739324762302,0.0001066,96222.0,96221.0,1.19832781]
[1739324762505,0.0001066,96222.0,96221.0,1.20232781]
[1739324763996,0.0001066,96222.0,96221.0,1.12712781]
[1739324764201,0.0001066,96222.0,96221.0,1.11812781]
[1739324764418,0.0001066,96222.0,96221.0,1.13012781]
[1739324765577,0.155868,96235.0,96221.0,0.97423681]
[1739324765775,0.0957017,96231.0,96229.0,0.155877]
[1739324765976,0.155866,96237.0,96229.0,0.155877]
[1739324766392,0.155866,96237.0,96226.0,0.207842]
[1739324766393,0.155863,96239.0,96222.0,0.18584176]
[1739324766616,0.0957017,96240.0,96223.0,0.10250365]
[1739324766828,0.155861,96239.0,96233.0,0.15587]
[1739324767185,0.0957017,96240.0,96230.0,0.207833]
[1739324767336,0.15382878,96238.0,96231.0,0.155873]
[1739324767950,0.12646381,96240.0,96231.0,0.155874]
[1739324767951,0.33427881,96240.0,96231.0,0.155874]
[1739324768545,0.33427881,96240.0,96232.0,0.155872]
[1739324768546,0.155864,96238.0,96232.0,0.155872]
[1739324769035,0.12646381,96240.0,96224.0,0.42333681]
[1739324769232,0.155862,96239.0,96233.0,0.15587]
[1739324769594,0.0957017,96241.0,96233.0,0.15587]
[1739324769798,0.0957017,96241.0,96231.0,0.207832]
[1739324769799,0.0957017,96241.0,96234.0,0.155868]
[1739324770139,0.03148338,96241.0,96240.0,0.15586]
[1739324770548,0.15,96246.0,96241.0,0.155858]
[1739324770752,0.03099945,96244.0,96240.0,0.15586]
[1739324770955,0.30585,96246.0,96241.0,0.32083316]
[1739324771534,0.15585,96246.0,96241.0,0.32083316]
[1739324771744,0.15585,96246.0,96241.0,0.39953514]
[1739324772278,0.03080218,96246.0,96241.0,0.39953514]
[1739324772484,0.0001066,96248.0,96244.0,0.155853]
[1739324772686,0.0001066,96248.0,96245.0,0.32083316]
[1739324773182,0.0001066,96248.0,96245.0,0.36157171]
[1739324773719,0.0001066,96246.0,96245.0,0.36157171]
[1739324776470,0.0001066,96246.0,96245.0,0.32083316]
[1739324776703,0.1559566,96246.0,96245.0,0.32083316]
[1739324777107,0.0001066,96246.0,96245.0,0.32083316]
[1739324777522,0.1559566,96246.0,96245.0,0.32083316]
[1739324779072,0.0001066,96246.0,96245.0,0.32083316]
[1739324779311,0.1559566,96246.0,96245.0,0.32083316]
[1739324780651,0.0001066,96246.0,96245.0,0.32083316]
[1739324781224,0.0001066,96246.0,96245.0,0.38928338]
[1739324781410,0.0001066,96246.0,96245.0,0.32083316]
[1739324785782,0.1559566,96246.0,96245.0,0.32083316]
[1739324786472,0.0001066,96246.0,96245.0,0.32083316]
[1739324790101,0.1559566,96246.0,96245.0,0.32083316]
[1739324790779,0.0001066,96246.0,96245.0,0.47668516]
[1739324792655,0.0001066,96246.0,96245.0,0.32083316]
[1739324792895,0.0001066,96246.0,96245.0,0.47668516]
[1739324793334,0.0001066,96246.0,96245.0,0.32083316]
[1739324793867,0.0001066,96246.0,96245.0,0.47668516]
[1739324797142,0.0001066,96246.0,96245.0,0.32083316]
[1739324798036,0.0001066,96246.0,96245.0,0.47668516]
[1739324798236,0.0001066,96246.0,96245.0,0.32083316]
[1739324798935,0.0001066,96246.0,96245.0,0.47668516]
[1739324799261,0.0001066,96246.0,96245.0,0.32083316]
[1739324799442,0.0001066,96246.0,96245.0,0.47668516]
[1739324799805,0.0001066,96246.0,96245.0,0.57413736]
[1739324800036,0.15,96259.0,96251.0,0.155841]
[1739324800037,0.155833,96257.0,96251.0,0.155841]
[1739324800268,0.155833,96257.0,96251.0,0.0817]
[1739324800454,0.155833,96257.0,96251.0,0.237541]
[1739324800724,0.155833,96257.0,96252.0,0.32083316]
[1739324801425,0.155836,96256.0,96252.0,0.32083316]
[1739324802157,0.155836,96256.0,96252.0,0.32183316]
[1739324802592,0.155836,96256.0,96252.0,0.32083316]
[1739324802912,7.829e-05,96257.0,96252.0,0.32083316]
[1739324803294,0.207766,96262.0,96252.0,0.32183316]
[1739324803497,0.02116899,96261.0,96252.0,0.32183316]
[1739324803695,0.155834,96257.0,96252.0,0.32183316]
[1739324804332,0.155831,96258.0,96252.0,0.32083316]
[1739324804479,0.155831,96258.0,96252.0,0.32183316]
[1739324804848,0.207768,96261.0,96252.0,0.32283316]
[1739324805037,0.155829,96260.0,96252.0,0.32183316]
[1739324805248,0.15583,96259.0,96253.0,0.07671692]
[1739324805449,0.15583,96259.0,96252.0,0.32183316]
[1739324805650,0.15583,96259.0,96252.0,0.32083316]
[1739324805994,0.15583,96259.0,96252.0,0.32183316]
[1739324806206,0.12259928,96262.0,96252.0,0.32283316]
[1739324806479,0.155829,96260.0,96252.0,0.47867316]
[1739324806700,0.155829,96260.0,96252.0,0.47767316]
[1739324806872,0.155829,96260.0,96252.0,0.47667316]
[1739324807087,0.155829,96260.0,96252.0,0.47767316]
[1739324807409,0.155829,96260.0,96252.0,0.47667316]
[1739324807642,0.12259928,96262.0,96253.0,0.155838]
[1739324807850,0.02689758,96262.0,96261.0,0.155826]
[1739324808057,0.02112154,96272.0,96268.0,0.155815]
[1739324808264,0.02112154,96272.0,96268.0,0.47664816]
[1739324809140,0.0001066,96279.0,96268.0,0.57915181]
[1739324809364,0.0001066,96279.0,96268.0,0.68165546]
[1739324809575,0.0001066,96279.0,96268.0,0.58015181]
[1739324809781,0.0001066,96279.0,96268.0,0.70195181]
[1739324809782,0.02035946,96273.0,96268.0,0.70195181]
[1739324809988,0.0001066,96279.0,96268.0,0.70195181]
[1739324810194,0.02705004,96269.0,96268.0,0.70195181]
[1739324810599,0.0002,96269.0,96268.0,0.70695181]
[1739324814599,0.02696562,96269.0,96268.0,0.70695181]
[1739324816274,0.02696562,96269.0,96268.0,0.55113681]
[1739324816510,0.02696562,96269.0,96268.0,0.70695181]
[1739324816696,0.02696562,96269.0,96268.0,0.42933681]
[1739324816933,0.02696562,96269.0,96268.0,0.58515181]
[1739324818022,0.02696562,96269.0,96268.0,0.42933681]
[1739324818164,0.02696562,96269.0,96268.0,0.58515181]
[1739324818843,0.02696562,96269.0,96268.0,0.32683316]
[1739324820515,0.0002,96269.0,96268.0,0.32683316]
[1739324820719,0.0002,96269.0,96268.0,0.45225465]
[1739324821152,0.0002,96269.0,96268.0,0.7105733]
[1739324821333,0.0003066,96269.0,96268.0,0.7105733]
[1739324821711,0.0003066,96269.0,96268.0,0.7045733]
[1739324821928,0.0003066,96269.0,96268.0,1.2899733]
[1739324822096,0.0003066,96269.0,96268.0,1.2929733]
[1739324822293,0.0003066,96269.0,96268.0,1.2879733]
[1739324822683,0.0003066,96269.0,96268.0,1.2949733]
[1739324823126,0.0003066,96269.0,96268.0,1.2889733]
[1739324823504,0.0003066,96269.0,96268.0,1.3009733]
[1739324823912,0.0003066,96269.0,96268.0,1.3239733]
[1739324824794,0.0003066,96269.0,96268.0,1.3119733]
[1739324824975,0.0003066,96269.0,96268.0,1.3079733]
[1739324825204,0.0003066,96269.0,96268.0,1.3229733]
[1739324825434,0.0003066,96269.0,96268.0,1.3279733]
[1739324826560,0.0003066,96269.0,96268.0,1.4779733]
[1739324827217,0.0003066,96269.0,96268.0,1.49739471]
[1739324827588,0.0003066,96269.0,96268.0,1.50739471]
[1739324828020,0.0003066,96269.0,96268.0,1.49739471]
[1739324828228,0.0003066,96269.0,96268.0,1.50739471]
[1739324831572,0.0003066,96269.0,96268.0,1.48739471]
[1739324831815,0.0003066,96269.0,96268.0,1.50239471]
[1739324832037,0.0003066,96269.0,96268.0,1.50839471]
[1739324832609,1e-07,96271.0,96270.0,0.325811]
[1739324832812,1e-07,96271.0,96270.0,0.6762183]
[1739324833603,0.02667925,96313.0,96270.0,0.6762183]
[1739324833604,5.8e-07,96288.0,96287.0,0.16]
[1739324833809,5.8e-07,96288.0,96287.0,0.58240573]
[1739324834012,3.4e-07,96288.0,96287.0,0.58136765]
[1739324834274,0.0001066,96335.0,96308.0,0.30575]
[1739324834480,0.0001066,96335.0,96308.0,1.40938671]
[1739324834652,0.0001066,96335.0,96308.0,1.41938671]
[1739324835012,0.0001066,96335.0,96308.0,1.44027734]